bitfinex/quotes_BTCUSD_20241202
["timestamp","ask_amount","ask_price","bid_price","bid_amount"]
[1733106182895,0.00191111,97705.0,97699.0,0.20471]
[1733106183783,0.00291111,97705.0,97699.0,0.20471]
[1733106184266,0.00191111,97705.0,97699.0,0.20671]
[1733106185424,0.00191111,97705.0,97699.0,0.41142]
[1733106185836,0.00191111,97705.0,97699.0,0.40942]
[1733106186269,0.00191111,97705.0,97699.0,0.41342]
[1733106186482,0.00191111,97705.0,97699.0,0.40942]
[1733106186897,0.00191111,97705.0,97699.0,0.41142]
[1733106187627,0.00191111,97705.0,97699.0,0.20471]
[1733106188979,0.00291111,97705.0,97699.0,0.21071]
[1733106189228,0.00291111,97705.0,97699.0,0.21171]
[1733106189429,0.00191111,97705.0,97699.0,0.41042]
[1733106189652,0.00191111,97705.0,97699.0,0.41342]
[1733106189860,0.00191111,97705.0,97700.0,0.03090353]
[1733106190118,0.00191111,97705.0,97702.0,0.204704]
[1733106190326,0.00191111,97705.0,97704.0,0.25]
[1733106190775,0.00191111,97705.0,97704.0,0.28090353]
[1733106192116,0.00191111,97705.0,97704.0,0.25]
[1733106192331,0.00291111,97705.0,97704.0,0.28193831]
[1733106192956,0.00191111,97705.0,97704.0,0.28193831]
[1733106193167,0.00191111,97705.0,97704.0,0.28293831]
[1733106193603,0.00191111,97705.0,97704.0,0.28193831]
[1733106193803,0.00191111,97705.0,97704.0,0.31485959]
[1733106194011,0.00191111,97705.0,97704.0,0.31585959]
[1733106194221,0.00191111,97705.0,97704.0,0.31185959]
[1733106195612,0.00191111,97705.0,97704.0,0.31585959]
[1733106197007,0.00191111,97705.0,97704.0,0.29139479]
[1733106198103,0.00191111,97705.0,97704.0,0.26247351]
[1733106198324,0.00191111,97705.0,97704.0,0.29242434]
[1733106201394,0.00191111,97705.0,97704.0,0.44306955]
[1733106202042,0.00191111,97705.0,97704.0,0.45425459]
[1733106202527,0.00191111,97705.0,97704.0,0.44306955]
[1733106204074,0.00191111,97705.0,97704.0,0.52606955]
[1733106205398,0.00191111,97705.0,97704.0,0.77606955]
[1733106205657,0.001732,97712.0,97711.0,0.354685]
[1733106205890,0.001732,97712.0,97711.0,0.49688209]
[1733106207389,0.001732,97712.0,97711.0,0.50288209]
[1733106207850,0.001732,97712.0,97711.0,0.25003688]
[1733106208279,0.001732,97712.0,97711.0,0.24456337]
[1733106214037,0.001732,97712.0,97711.0,0.03987837]
[1733106214257,0.078032,97712.0,97711.0,0.008]
[1733106214474,0.127532,97712.0,97711.0,0.008]
[1733106215067,0.127532,97712.0,97711.0,0.006]
[1733106215299,0.1385731,97712.0,97711.0,0.002]
[1733106215741,0.1385731,97712.0,97711.0,0.007]
[1733106215968,0.0890731,97712.0,97704.0,0.25104431]
[1733106216644,0.0890731,97712.0,97704.0,0.45574331]
[1733106217968,0.0890731,97712.0,97704.0,0.45674331]
[1733106218459,0.0890731,97712.0,97704.0,0.25404431]
[1733106218675,0.0890731,97712.0,97704.0,0.25204431]
[1733106219099,0.0890731,97712.0,97704.0,0.25504431]
[1733106219305,0.0890731,97712.0,97704.0,0.25104431]
[1733106219779,0.204685,97711.0,97704.0,0.25104431]
[1733106219983,0.204685,97711.0,97704.0,0.25404431]
[1733106220614,0.0890731,97712.0,97704.0,0.25404431]
[1733106220829,0.0890731,97712.0,97704.0,0.00504431]
[1733106220830,0.19191831,97712.0,97704.0,0.00504431]
[1733106221265,0.204687,97710.0,97704.0,0.00504431]
[1733106221467,0.204687,97710.0,97704.0,0.00404431]
[1733106221700,0.204687,97710.0,97704.0,0.00204431]
[1733106222136,0.204687,97710.0,97704.0,0.00504431]
[1733106222359,0.204687,97710.0,97704.0,0.00404431]
[1733106222568,0.209687,97710.0,97704.0,0.00404431]
[1733106222773,0.0454,97706.0,97704.0,0.00404431]
[1733106222979,0.17874521,97705.0,97704.0,0.00404431]
[1733106223198,0.17874521,97705.0,97704.0,0.00104431]
[1733106223416,0.24714521,97705.0,97704.0,0.00104431]
[1733106223839,0.39714521,97705.0,97704.0,0.00104431]
[1733106225172,0.40414521,97705.0,97704.0,0.00204431]
[1733106226276,0.41314521,97705.0,97704.0,0.00304431]
[1733106229448,0.39014521,97705.0,97704.0,0.00304431]
[1733106231411,0.24014521,97705.0,97704.0,0.00304431]
[1733106232269,0.24187721,97705.0,97704.0,0.00304431]
[1733106237660,0.41487721,97705.0,97704.0,0.00304431]
[1733106238579,0.41487721,97705.0,97684.0,0.18847391]
[1733106238800,0.173,97703.0,97686.0,0.204737]
[1733106239096,0.227708,97700.0,97686.0,0.204737]
[1733106239316,0.173,97697.0,97684.0,0.18847391]
[1733106240202,0.023,97698.0,97685.0,0.204739]
[1733106240444,0.023,97696.0,97685.0,0.204739]
[1733106240681,0.001,97697.0,97685.0,0.204739]
[1733106241337,0.409432,97696.0,97681.0,0.454746]
[1733106241587,0.002,97697.0,97671.0,0.454768]
[1733106241588,0.023,97694.0,97671.0,0.454768]
[1733106241795,0.10284521,97693.0,97671.0,0.454768]
[1733106242013,0.204731,97689.0,97676.0,0.204756]
[1733106242475,0.204731,97689.0,97677.0,0.00081347]
[1733106243387,0.204731,97689.0,97685.0,0.001]
[1733106243806,0.204731,97689.0,97677.0,0.00281347]
[1733106244250,0.023,97691.0,97678.0,0.204754]
[1733106244458,0.12584521,97691.0,97683.0,0.204742]
[1733106245961,0.002,97689.0,97683.0,0.204742]
[1733106246164,0.004,97689.0,97683.0,0.204742]
[1733106246392,0.12584521,97691.0,97683.0,0.204742]
[1733106246849,0.12584521,97691.0,97680.0,0.15683357]
[1733106246850,0.12784521,97691.0,97680.0,0.15683357]
[1733106247065,0.12684521,97691.0,97681.0,0.204748]
[1733106247273,0.001,97689.0,97681.0,0.204748]
[1733106247511,0.001,97689.0,97680.0,0.15683357]
[1733106247719,0.001,97689.0,97681.0,0.204748]
[1733106247935,0.001,97689.0,97684.0,0.409482]
[1733106248180,0.001,97689.0,97684.0,0.659482]
[1733106248450,0.001,97689.0,97686.0,0.204737]
[1733106248662,0.001,97689.0,97688.0,0.204733]
[1733106248892,0.001,97689.0,97688.0,0.2065446]
[1733106249124,0.001,97689.0,97688.0,0.30938981]
[1733106249359,0.001,97689.0,97688.0,0.46395962]
[1733106249579,0.0017324,97694.0,97693.0,0.0805]
[1733106249793,0.0017324,97694.0,97693.0,0.18515659]
[1733106250247,0.0017324,97694.0,97693.0,0.21703121]
[1733106250456,0.0017324,97694.0,97693.0,0.21521983]
[1733106250877,0.0017324,97694.0,97693.0,0.24440124]
[1733106253315,0.0017324,97694.0,97693.0,0.54100124]
[1733106253545,0.0017324,97694.0,97693.0,0.64100124]
[1733106253990,0.00191007,97705.0,97704.0,0.25]
[1733106254205,0.00191007,97705.0,97704.0,0.89974135]
[1733106255318,0.00191007,97705.0,97704.0,0.99974135]
[1733106255979,0.00191007,97705.0,97704.0,1.00174135]
[1733106256225,0.00191007,97705.0,97704.0,1.12091243]
[1733106256665,0.00191007,97705.0,97704.0,1.14090083]
[1733106256928,0.00191007,97705.0,97704.0,1.13990083]
[1733106257152,0.00291007,97705.0,97704.0,1.14690083]
[1733106263898,0.00291007,97705.0,97704.0,0.91502621]
[1733106264120,0.00291007,97705.0,97704.0,0.57354421]
[1733106264548,0.00291007,97705.0,97704.0,0.60407758]
[1733106265491,0.00291007,97705.0,97704.0,0.74507758]
[1733106265703,0.00291007,97705.0,97704.0,0.74707758]
[1733106265924,0.00191007,97705.0,97704.0,0.74707758]
[1733106266349,0.00191007,97705.0,97704.0,0.75307758]
[1733106266799,0.00191007,97705.0,97704.0,0.74707758]
[1733106267027,0.00191007,97705.0,97704.0,0.75307758]
[1733106267478,0.00191007,97705.0,97704.0,0.65023237]
[1733106268556,0.00191007,97705.0,97704.0,0.64123237]
[1733106269002,0.00191007,97705.0,97704.0,0.64423237]
[1733106269214,0.00191007,97705.0,97704.0,0.64923237]
[1733106269424,0.00191007,97705.0,97704.0,0.64023237]
[1733106269682,0.00191007,97705.0,97704.0,0.49923237]
[1733106269908,0.00191007,97705.0,97704.0,0.463699]
[1733106270141,0.00191007,97705.0,97704.0,0.50032997]
[1733106270574,0.00191007,97705.0,97704.0,0.49132997]
[1733106270804,0.00191007,97705.0,97704.0,0.48632997]
[1733106271046,0.00191007,97705.0,97704.0,0.49032997]
[1733106271998,0.00191007,97705.0,97704.0,0.49932997]
[1733106272454,0.00191007,97705.0,97704.0,0.48632997]
[1733106272692,0.00191007,97705.0,97704.0,0.49732997]
[1733106273177,0.00191007,97705.0,97704.0,0.29263097]
[1733106273387,0.00191007,97705.0,97704.0,0.261]
[1733106273601,0.00191007,97705.0,97704.0,0.011]
[1733106274028,0.08061007,97705.0,97704.0,0.011]
[1733106274234,0.08061007,97705.0,97704.0,0.0066]
[1733106274853,0.12861007,97705.0,97694.0,0.0008661]
[1733106275065,0.204699,97704.0,97694.0,0.0008661]
[1733106275515,0.4094,97704.0,97694.0,0.0008661]
[1733106275712,0.204699,97704.0,97694.0,0.0008661]
[1733106275926,0.12961007,97705.0,97694.0,0.0008661]
[1733106276139,0.12861007,97705.0,97695.0,0.204718]
[1733106276561,0.12861007,97705.0,97695.0,0.409436]
[1733106276845,0.00191007,97705.0,97701.0,0.25]
[1733106277048,0.00191007,97705.0,97702.0,0.00181151]
[1733106277318,0.00191007,97705.0,97703.0,0.204702]
[1733106277533,0.00191007,97705.0,97703.0,0.20651342]
[1733106278971,0.00391007,97705.0,97703.0,0.20651342]
[1733106279191,0.00391007,97705.0,97701.0,0.25]
[1733106279192,0.00491007,97705.0,97701.0,0.25]
[1733106279396,0.00291007,97705.0,97701.0,0.25]
[1733106280110,0.00391007,97705.0,97701.0,0.25]
[1733106280345,0.0479,97704.0,97694.0,0.0008661]
[1733106280545,0.0479,97704.0,97695.0,0.204718]
[1733106280772,0.0479,97704.0,97701.0,0.001]
[1733106281797,0.00291007,97705.0,97701.0,0.001]
[1733106282000,0.00191007,97705.0,97696.0,0.20652755]
[1733106282418,0.00191007,97705.0,97701.0,0.003]
[1733106282618,0.00191007,97705.0,97696.0,0.23865251]
[1733106282823,0.00191007,97705.0,97701.0,0.25]
[1733106283031,0.00191007,97705.0,97702.0,0.20651553]
[1733106285432,0.00191007,97705.0,97702.0,0.20951553]
[1733106291757,0.00191007,97705.0,97702.0,0.21038153]
[1733106295950,0.00191007,97705.0,97704.0,0.204699]
[1733106296419,0.00191007,97705.0,97704.0,0.23740691]
[1733106297548,0.00191007,97705.0,97704.0,0.23840691]
[1733106297804,0.00191007,97705.0,97704.0,0.27030773]
[1733106298032,0.00191007,97705.0,97704.0,0.23759982]
[1733106299410,0.00191007,97705.0,97704.0,0.205699]
[1733106299665,0.00191007,97705.0,97704.0,0.23942564]
[1733106299878,0.00191007,97705.0,97704.0,0.23761431]
[1733106300367,0.00191007,97705.0,97704.0,0.205699]
[1733106300568,0.00191007,97705.0,97704.0,0.03291879]
[1733106300774,0.22655528,97705.0,97704.0,0.001]
[1733106301851,0.00191007,97705.0,97702.0,0.000866]
[1733106302116,0.330802,97703.0,97702.0,0.000866]
[1733106302352,0.60664721,97703.0,97702.0,0.000866]
[1733106302768,0.58364721,97703.0,97702.0,0.000866]
[1733106303043,0.22894521,97703.0,97702.0,0.000866]
[1733106303245,0.1261,97703.0,97702.0,0.000866]
[1733106304789,0.1291,97703.0,97702.0,0.000866]
[1733106305466,0.1331,97703.0,97702.0,0.000866]
[1733106305666,0.1291,97703.0,97702.0,0.000866]
[1733106306146,0.1331,97703.0,97702.0,0.000866]
[1733106306817,0.007,97703.0,97702.0,0.000866]
[1733106307304,0.007,97703.0,97702.0,0.250866]
[1733106307773,0.004,97703.0,97702.0,0.250866]
[1733106307998,0.006,97703.0,97702.0,0.250866]
[1733106308448,0.00191007,97705.0,97702.0,0.35371121]
[1733106308660,0.00191007,97705.0,97703.0,0.3093584]
[1733106309084,0.00191007,97705.0,97704.0,0.03190822]
[1733106309298,0.00191007,97705.0,97704.0,0.13475343]
[1733106310206,0.00291007,97705.0,97704.0,0.13475343]
[1733106310438,0.00191007,97705.0,97704.0,0.13475343]
[1733106311336,0.00291007,97705.0,97704.0,0.03190822]
[1733106311555,0.00291007,97705.0,97704.0,0.03371955]
[1733106311791,0.00291007,97705.0,97704.0,0.00181133]
[1733106312440,0.00391007,97705.0,97704.0,0.00181133]
[1733106315057,0.00391007,97705.0,97704.0,0.03371865]
[1733106316194,0.00391007,97705.0,97704.0,0.13656386]
[1733106316404,0.00391007,97705.0,97704.0,0.24296749]
[1733106316615,0.00391007,97705.0,97704.0,0.24115616]
[1733106316847,0.00391007,97705.0,97704.0,0.25181316]
[1733106317319,0.001732,97712.0,97705.0,0.409394]
[1733106317551,0.001732,97712.0,97707.0,0.354693]
[1733106317762,0.001732,97712.0,97709.0,0.15]
[1733106317985,0.001732,97712.0,97711.0,0.354685]
[1733106318199,0.001732,97712.0,97711.0,0.48943753]
[1733106318448,0.001732,97712.0,97711.0,0.51679452]
[1733106320210,0.001732,97712.0,97711.0,0.51979452]
[1733106320421,0.001734,97722.0,97721.0,0.25]
[1733106320630,0.001734,97722.0,97721.0,0.454664]
[1733106321756,0.25093,97738.0,97721.0,0.454664]
[1733106322009,0.023,97737.0,97723.0,0.20466]
[1733106322217,0.023,97737.0,97724.0,0.00181103]
[1733106322517,0.023,97737.0,97725.0,0.204655]
[1733106323357,0.026,97737.0,97725.0,0.204655]
[1733106323587,0.023,97737.0,97724.0,0.00181103]
[1733106323798,0.204632,97736.0,97724.0,0.00181103]
[1733106324007,0.204632,97736.0,97722.0,0.00181103]
[1733106324211,0.03,97737.0,97723.0,0.20466]
[1733106324425,0.204632,97736.0,97722.0,0.00181103]
[1733106325532,0.204644,97731.0,97713.0,0.204679]
[1733106325737,0.204644,97731.0,97715.0,0.204676]
[1733106325957,0.204644,97731.0,97720.0,0.15683357]
[1733106327052,0.023,97733.0,97722.0,0.0001146]
[1733106327928,0.0803,97735.0,97725.0,0.25]
[1733106328170,0.0803,97735.0,97726.0,0.204653]
[1733106329531,0.001,97733.0,97726.0,0.204653]
[1733106329964,0.0833,97735.0,97726.0,0.204653]
[1733106330400,0.0843,97735.0,97726.0,0.204653]
[1733106330641,0.0843,97735.0,97725.0,0.25]
[1733106330867,0.0823,97735.0,97722.0,0.0001146]
[1733106331083,0.023,97731.0,97722.0,0.0001146]
[1733106331973,0.023,97729.0,97722.0,0.0001146]
[1733106332224,0.204654,97726.0,97722.0,0.0001146]
[1733106332454,0.204658,97724.0,97722.0,0.0001146]
[1733106332701,0.023,97725.0,97722.0,0.0001146]
[1733106332907,0.0807,97727.0,97722.0,0.0001146]
[1733106333153,0.023,97733.0,97723.0,0.20466]
[1733106333385,0.0807,97734.0,97726.0,0.25]
[1733106333617,0.001,97735.0,97726.0,0.25]
[1733106333827,0.001,97735.0,97732.0,0.204639]
[1733106334073,0.001,97735.0,97726.0,0.25]
[1733106334325,0.001732,97737.0,97735.0,0.204633]
[1733106334537,0.0017336,97744.0,97737.0,0.20463]
[1733106334745,0.0017336,97744.0,97739.0,0.204626]
[1733106334963,0.0017336,97744.0,97741.0,0.204622]
[1733106335210,0.0017336,97744.0,97741.0,0.35657773]
[1733106335428,0.0017336,97744.0,97741.0,0.71096973]
[1733106335652,0.00189616,97742.0,97741.0,0.74280921]
[1733106335997,0.0017336,97744.0,97743.0,0.35]
[1733106336211,0.036589,97754.0,97743.0,0.35]
[1733106336212,0.036589,97754.0,97753.0,0.5948]
[1733106336426,0.036589,97754.0,97753.0,1.19790253]
[1733106336629,0.0017336,97777.0,97776.0,0.454549]
[1733106336873,0.0017336,97777.0,97776.0,0.58831205]
[1733106337083,0.0017336,97777.0,97776.0,0.73831205]
[1733106337300,0.0017336,97777.0,97776.0,0.83792982]
[1733106337509,0.0017336,97777.0,97776.0,0.84862031]
[1733106337738,0.0017336,97777.0,97776.0,0.94820645]
[1733106337955,0.0018977,97777.0,97776.0,0.7969847]
[1733106338170,0.0018977,97777.0,97776.0,0.82814014]
[1733106338401,0.0018977,97777.0,97776.0,0.63570444]
[1733106338609,0.0017336,97779.0,97776.0,0.63570444]
[1733106338610,0.0017346,97795.0,97786.0,0.25]
[1733106338828,0.0017346,97795.0,97787.0,0.03341172]
[1733106339036,0.0017346,97795.0,97788.0,0.30736721]
[1733106339252,0.0017346,97795.0,97789.0,0.0018096]
[1733106339462,0.0017346,97795.0,97790.0,0.0018096]
[1733106339672,0.0017346,97795.0,97790.0,0.03409199]
[1733106340100,0.0017346,97795.0,97790.0,0.23861099]
[1733106340769,0.0017346,97795.0,97790.0,0.003]
[1733106341008,0.0017346,97795.0,97791.0,0.00180971]
[1733106341711,0.0017346,97795.0,97790.0,0.00180971]
[1733106341940,0.0017346,97795.0,97791.0,0.00180971]
[1733106343710,0.0017346,97795.0,97791.0,0.00780971]
[1733106344546,0.0017346,97795.0,97786.0,0.25]
[1733106344771,0.0017346,97795.0,97787.0,0.00180979]
[1733106344969,0.0017346,97795.0,97788.0,0.204524]
[1733106345199,0.0017346,97795.0,97791.0,0.204516]
[1733106345411,0.0017346,97795.0,97792.0,0.03712602]
[1733106345826,0.0017346,97795.0,97793.0,0.204513]
[1733106346036,0.0017346,97795.0,97794.0,0.03748694]
[1733106347052,0.0017346,97795.0,97794.0,0.24199794]
[1733106347311,0.001732,97803.0,97799.0,0.25]
[1733106347670,0.001732,97803.0,97800.0,0.03748686]
[1733106348006,0.001732,97803.0,97800.0,0.24198486]
[1733106348467,0.001732,97803.0,97800.0,0.03748686]
[1733106348697,0.001732,97810.0,97800.0,0.03748686]
[1733106350957,0.001732,97810.0,97800.0,0.03948686]
[1733106351169,0.001732,97810.0,97800.0,0.04048686]
[1733106351401,0.001732,97810.0,97800.0,0.19732043]
[1733106353011,0.001732,97810.0,97800.0,0.19632043]
[1733106353254,0.001732,97810.0,97800.0,0.19532043]
[1733106353489,0.001732,97810.0,97800.0,0.19732043]
[1733106355751,0.20448,97809.0,97800.0,0.19732043]
[1733106355976,0.20448,97809.0,97800.0,0.15883357]
[1733106356198,0.20448,97809.0,97800.0,0.15683357]
[1733106356424,0.20448,97809.0,97800.0,0.15783357]
[1733106356650,0.20448,97809.0,97800.0,0.15983357]
[1733106356874,0.20448,97809.0,97800.0,0.15683357]
[1733106357137,0.204493,97803.0,97790.0,0.15683357]
[1733106357368,0.204482,97808.0,97800.0,0.001]
[1733106357589,0.204482,97808.0,97800.0,0.15783357]
[1733106358059,0.204482,97808.0,97800.0,0.15683357]
[1733106360154,0.204482,97808.0,97800.0,0.15783357]
[1733106360390,0.204482,97808.0,97800.0,0.001]
[1733106360825,0.204482,97808.0,97798.0,0.15683357]
[1733106361022,0.204482,97808.0,97791.0,0.00180971]
[1733106361516,0.204482,97808.0,97792.0,0.204515]
[1733106361724,0.204482,97808.0,97793.0,0.00180971]
[1733106362572,0.001732,97810.0,97793.0,0.00180971]
[1733106362792,0.22748,97809.0,97794.0,0.23869387]
[1733106363053,0.001,97808.0,97795.0,0.00180971]
[1733106363257,0.22748,97809.0,97795.0,0.00180971]
[1733106363465,0.22748,97809.0,97796.0,0.03418287]
[1733106364363,0.22748,97809.0,97799.0,0.15683357]
[1733106365091,0.431961,97809.0,97799.0,0.15683357]
[1733106365314,0.204492,97804.0,97793.0,0.00180971]
[1733106365533,0.281092,97804.0,97793.0,0.00180971]
[1733106365971,0.281092,97804.0,97796.0,0.001]
[1733106366217,0.281092,97804.0,97793.0,0.00180971]
[1733106366650,0.281092,97804.0,97793.0,0.00380971]
[1733106366869,0.281092,97804.0,97793.0,0.00280971]
[1733106367079,0.281092,97804.0,97796.0,0.001]
[1733106367541,0.281092,97804.0,97793.0,0.00180971]
[1733106367749,0.281092,97804.0,97793.0,0.00280971]
[1733106368382,0.281092,97804.0,97793.0,0.001]
[1733106369045,0.281092,97804.0,97792.0,0.00267573]
[1733106369963,0.281092,97804.0,97792.0,0.000866]
[1733106370169,0.0766,97804.0,97793.0,0.03520541]
[1733106370385,0.0766,97804.0,97793.0,0.03420541]
[1733106370609,0.281091,97804.0,97793.0,0.03420541]
[1733106372606,0.281091,97804.0,97793.0,0.03520541]
[1733106374368,0.0766,97804.0,97793.0,0.23971841]
[1733106374591,0.0766,97804.0,97794.0,0.03192274]
[1733106375015,0.204492,97803.0,97795.0,0.0345648]
[1733106377606,0.227484,97807.0,97795.0,0.0345648]
[1733106378666,0.227484,97807.0,97795.0,0.0355648]
[1733106378870,0.227484,97807.0,97795.0,0.0345648]
[1733106379304,0.227484,97807.0,97795.0,0.0357208]
[1733106379934,0.227484,97807.0,97795.0,0.03508682]
[1733106380145,0.227484,97807.0,97795.0,0.001156]
[1733106382663,0.0017318,97808.0,97792.0,0.18614079]
[1733106382893,0.0017318,97808.0,97797.0,0.15683357]
[1733106383344,0.0017318,97808.0,97798.0,0.204503]
[1733106383578,0.0017318,97808.0,97803.0,0.25]
[1733106383810,0.0017318,97808.0,97804.0,0.06824791]
[1733106384047,0.0017318,97808.0,97805.0,0.03192632]
[1733106384256,0.0493,97825.0,97811.0,0.204474]
[1733106384463,0.0493,97825.0,97812.0,0.00180935]
[1733106384682,0.204448,97824.0,97812.0,0.00180935]
[1733106384894,0.0493,97825.0,97813.0,0.00180936]
[1733106385119,0.0493,97825.0,97811.0,0.36130757]
[1733106385358,0.0493,97825.0,97812.0,0.00180935]
[1733106385572,0.023,97823.0,97811.0,0.001]
[1733106385787,0.204473,97812.0,97811.0,0.001]
[1733106386255,0.10465503,97822.0,97800.0,0.15683357]
[1733106386256,0.204476,97811.0,97800.0,0.15683357]
[1733106386695,0.204478,97810.0,97800.0,0.15683357]
[1733106386923,0.0017318,97808.0,97800.0,0.15683357]
[1733106387556,0.20372588,97809.0,97800.0,0.15683357]
[1733106388665,0.20372588,97809.0,97800.0,0.15883357]
[1733106388887,0.20372588,97809.0,97800.0,0.15683357]
[1733106389310,0.20372588,97809.0,97800.0,0.15883357]
[1733106389746,0.40820688,97809.0,97800.0,0.15983357]
[1733106390383,0.20372588,97809.0,97800.0,0.15983357]
[1733106391490,0.204482,97808.0,97800.0,0.15983357]
[1733106391746,0.204484,97807.0,97800.0,0.15983357]
[1733106392392,0.204484,97807.0,97800.0,0.15683357]
[1733106392615,0.204484,97807.0,97800.0,0.15783357]
[1733106392847,0.204484,97807.0,97800.0,0.15983357]
[1733106393109,0.204484,97807.0,97800.0,0.15783357]
[1733106393343,0.204484,97807.0,97800.0,0.15683357]
[1733106393565,0.204484,97807.0,97800.0,0.15783357]
[1733106394709,0.204484,97807.0,97800.0,0.15983357]
[1733106395146,0.204479,97810.0,97800.0,0.15983357]
[1733106395373,0.204463,97817.0,97801.0,0.03450988]
[1733106395650,0.204475,97812.0,97808.0,0.15683357]
[1733106395843,0.204459,97819.0,97807.0,0.25]
[1733106396075,0.20447,97814.0,97809.0,0.19134345]
[1733106396299,0.20447,97814.0,97809.0,0.15683357]
[1733106396527,0.40894,97814.0,97809.0,0.15683357]
[1733106396759,0.04989395,97825.0,97800.0,0.15683357]
[1733106396979,0.00180982,97824.0,97801.0,0.00180958]
[1733106397177,0.204493,97803.0,97801.0,0.00180958]
[1733106397388,0.204493,97803.0,97800.0,0.15783357]
[1733106397604,0.204493,97803.0,97800.0,0.001]
[1733106398275,0.204493,97803.0,97798.0,0.01082085]
[1733106398509,0.204493,97803.0,97797.0,0.25]
[1733106398510,0.408986,97803.0,97797.0,0.25]
[1733106398718,0.408986,97803.0,97800.0,0.002]
[1733106398920,0.204493,97803.0,97800.0,0.002]
[1733106399402,0.204493,97803.0,97800.0,0.003]
[1733106401355,0.204496,97801.0,97800.0,0.003]
[1733106401570,0.30734121,97801.0,97800.0,0.002]
[1733106401784,0.204496,97801.0,97800.0,0.002]
[1733106402017,0.204496,97801.0,97800.0,0.005]
[1733106402246,0.204496,97801.0,97800.0,0.001]
[1733106402480,0.204499,97800.0,97793.0,0.25]
[1733106402893,0.408999,97800.0,97793.0,0.25]
[1733106403799,0.204499,97800.0,97793.0,0.25]
[1733106404263,0.408999,97800.0,97793.0,0.25]
[1733106404733,0.408999,97800.0,97795.0,0.0018659]
[1733106404952,0.408999,97800.0,97795.0,0.0008659]
[1733106405169,0.408999,97800.0,97795.0,0.0038659]
[1733106406472,0.33035221,97796.0,97795.0,0.0018659]
[1733106406930,0.204507,97796.0,97795.0,0.0028659]
[1733106407410,0.20368934,97796.0,97795.0,0.0028659]
[1733106407844,0.20368934,97796.0,97795.0,0.0018659]
[1733106408060,0.20368934,97796.0,97795.0,0.0028659]
[1733106408270,0.20368934,97796.0,97795.0,0.0008659]
[1733106408697,0.20768934,97796.0,97795.0,0.0008659]
[1733106408927,0.20768934,97796.0,97795.0,0.0018659]
[1733106408928,0.21368934,97796.0,97795.0,0.0018659]
[1733106409157,0.20968934,97796.0,97795.0,0.0018659]
[1733106409375,0.21068934,97796.0,97795.0,0.0018659]
[1733106409833,0.20968934,97796.0,97795.0,0.0018659]
[1733106410275,0.21068934,97796.0,97795.0,0.0018659]
[1733106410512,0.20468934,97796.0,97795.0,0.0008659]
[1733106410722,0.20749916,97796.0,97795.0,0.0008659]
[1733106411654,0.20549916,97796.0,97795.0,0.0008659]
[1733106411885,0.21049916,97796.0,97795.0,0.0008659]
[1733106412303,0.20949916,97796.0,97795.0,0.0008659]
[1733106412729,0.21149916,97796.0,97795.0,0.0008659]
[1733106422994,0.21323116,97796.0,97795.0,0.0008659]
[1733106423863,0.007732,97796.0,97795.0,0.0008659]
[1733106424792,0.001732,97796.0,97795.0,0.0008659]
[1733106425684,0.001732,97796.0,97795.0,0.0048659]
[1733106425894,0.001732,97796.0,97795.0,0.0068659]
[1733106426361,0.001732,97796.0,97795.0,0.0048659]
[1733106426851,0.001732,97796.0,97795.0,0.0068659]
[1733106427059,0.001732,97796.0,97795.0,0.0028659]
[1733106427481,0.001732,97796.0,97795.0,0.0068659]
[1733106427701,0.001732,97796.0,97795.0,0.0028659]
[1733106427914,0.001732,97796.0,97795.0,0.0058659]
[1733106428124,0.001732,97796.0,97795.0,0.0038659]
[1733106428336,0.001732,97796.0,97795.0,0.0058659]
[1733106430652,0.001732,97796.0,97795.0,0.0028659]
[1733106431106,0.001732,97796.0,97795.0,0.0058659]
[1733106431349,0.001732,97796.0,97795.0,0.2091847]
[1733106431621,0.001732,97796.0,97795.0,0.2121847]
[1733106431849,0.001732,97796.0,97795.0,0.2101847]
[1733106432287,0.001732,97796.0,97795.0,0.2121847]
[1733106432720,0.001732,97796.0,97795.0,0.2101847]
[1733106432942,0.001732,97796.0,97795.0,0.2121847]
[1733106433152,0.001732,97796.0,97795.0,0.2091847]
[1733106433584,0.001732,97796.0,97795.0,0.2121847]
[1733106434276,0.204489,97805.0,97800.0,0.25]
[1733106434492,0.0017318,97809.0,97795.0,0.0058659]
[1733106434697,0.0017318,97809.0,97796.0,0.00180962]
[1733106435365,0.204482,97808.0,97796.0,0.00180962]
[1733106436246,0.204482,97808.0,97796.0,0.00280962]
[1733106436488,0.204482,97808.0,97800.0,0.001]
[1733106436971,0.0017318,97809.0,97796.0,0.00180962]
[1733106437186,0.0017318,97809.0,97800.0,0.25]
[1733106437408,0.0017318,97809.0,97801.0,0.23860998]
[1733106437621,0.0017318,97809.0,97801.0,0.03411398]
[1733106438348,0.0017318,97809.0,97801.0,0.00180961]
[1733106440064,0.204482,97808.0,97801.0,0.00180961]
[1733106440297,0.0017318,97809.0,97800.0,0.25]
[1733106440497,0.0017318,97809.0,97801.0,0.00580961]
[1733106440980,0.0017318,97809.0,97801.0,0.00180961]
[1733106441432,0.0017318,97809.0,97801.0,0.00580961]
[1733106441643,0.0017318,97809.0,97801.0,0.00780961]
[1733106442137,0.0017318,97809.0,97801.0,0.00580961]
[1733106442364,0.0017318,97809.0,97801.0,0.21230561]
[1733106442804,0.0017318,97809.0,97801.0,0.20830561]
[1733106443017,0.0017318,97809.0,97801.0,0.21230561]
[1733106443462,0.0017318,97809.0,97801.0,0.21030561]
[1733106444326,0.0017318,97809.0,97806.0,0.204485]
[1733106444569,0.0017318,97809.0,97808.0,0.283182]
[1733106444810,0.0017318,97809.0,97808.0,0.41629373]
[1733106445022,0.0017318,97809.0,97808.0,0.56629373]
[1733106445470,0.0017318,97809.0,97808.0,0.61129373]
[1733106445680,0.0017318,97809.0,97808.0,0.62217816]
[1733106446330,0.0027318,97809.0,97808.0,0.66000369]
[1733106446546,0.0027318,97809.0,97808.0,0.62817816]
[1733106446760,0.0037318,97809.0,97808.0,0.63717816]
[1733106446970,0.0037318,97809.0,97808.0,0.66899448]
[1733106447433,0.0037318,97809.0,97808.0,0.63717816]
[1733106448081,0.0037318,97809.0,97808.0,0.60691164]
[1733106448496,0.0037318,97809.0,97808.0,0.63979667]
[1733106448717,0.0037318,97809.0,97808.0,0.60691164]
[1733106449133,0.0037318,97809.0,97808.0,0.63979667]